[Event "*** Titled Tuesday Blitz"]
[Site "Chess.com"]
[Date "2018.05.01"]
[Round "4"]
[White "gmjlh"]
[Black "GMSrinath"]
[Result "1-0"]
[WhiteElo "2623"]
[BlackElo "2747"]
[TimeControl "180+2"]
[EndTime "13:50:54 PDT"]
[Termination "gmjlh won by resignation"]

1. d4 {[%clk 0:03:01.9]} 1... Nf6 {[%clk 0:02:58.9]} 2. Nf3 {[%clk 0:03:02.4]}
2... e6 {[%clk 0:02:58.8]} 3. g3 {[%clk 0:03:02.4]} 3... d5 {[%clk 0:02:58]} 4.
c4 {[%clk 0:03:02.2]} 4... Be7 {[%clk 0:02:55.1]} 5. Bg2 {[%clk 0:03:00.9]} 5...
O-O {[%clk 0:02:56.6]} 6. O-O {[%clk 0:03:01.8]} 6... dxc4 {[%clk 0:02:58.2]} 7.
Ne5 {[%clk 0:03:02.7]} 7... Nc6 {[%clk 0:02:42.8]} 8. Nxc6 {[%clk 0:03:02.9]}
8... bxc6 {[%clk 0:02:44.7]} 9. Na3 {[%clk 0:03:04.3]} 9... Bxa3 {[%clk
0:02:00.5]} 10. bxa3 {[%clk 0:03:06.2]} 10... Nd5 {[%clk 0:01:58.2]} 11. Qa4
{[%clk 0:02:53.5]} 11... Nb6 {[%clk 0:01:55.3]} 12. Qa5 {[%clk 0:02:52.4]} 12...
Rb8 {[%clk 0:01:33.1]} 13. Rd1 {[%clk 0:02:47]} 13... Qe7 {[%clk 0:01:30.9]} 14.
Bg5 {[%clk 0:02:36.2]} 14... f6 {[%clk 0:01:18.8]} 15. Bd2 {[%clk 0:02:34.3]}
15... Nd5 {[%clk 0:01:19]} 16. e4 {[%clk 0:02:29.3]} 16... c3 {[%clk 0:01:12.2]}
17. Be1 {[%clk 0:02:27.1]} 17... Rb5 {[%clk 0:01:08]} 18. Qxa7 {[%clk
0:02:04.1]} 18... Bb7 {[%clk 0:00:55.5]} 19. a4 {[%clk 0:02:04.1]} 19... Ra8
{[%clk 0:00:45.5]} 20. Qxa8+ {[%clk 0:02:04.4]} 20... Bxa8 {[%clk 0:00:47.4]}
21. axb5 {[%clk 0:02:04.2]} 21... Nb6 {[%clk 0:00:45.4]} 22. bxc6 {[%clk
0:01:50.1]} 22... Qa3 {[%clk 0:00:44.4]} 23. d5 {[%clk 0:01:48.6]} 23... exd5
{[%clk 0:00:40.2]} 24. exd5 {[%clk 0:01:49.6]} 24... c2 {[%clk 0:00:41.4]} 25.
Rdc1 {[%clk 0:01:50.7]} 25... Qb2 {[%clk 0:00:42.9]} 26. Bd2 {[%clk 0:01:36.1]}
26... Qe5 {[%clk 0:00:34.1]} 27. Bf4 {[%clk 0:01:34.2]} 27... Qd4 {[%clk
0:00:33.8]} 28. Be3 {[%clk 0:01:29]} 28... Qe5 {[%clk 0:00:28.2]} 29. Bxb6
{[%clk 0:01:29.9]} 29... cxb6 {[%clk 0:00:30.1]} 30. a4 {[%clk 0:01:26.5]} 30...
Kf8 {[%clk 0:00:29.9]} 31. Ra2 {[%clk 0:01:26.2]} 1-0

[Event "*** Titled Tuesday Blitz"]
[Site "Chess.com"]
[Date "2018.05.01"]
[Round "4"]
[White "amatatanav"]
[Black "LisikValera"]
[Result "1-0"]
[WhiteElo "2412"]
[BlackElo "2418"]
[TimeControl "180+2"]
[EndTime "13:51:04 PDT"]
[Termination "amatatanav won by resignation"]

1. e4 {[%clk 0:03:01.9]} 1... e6 {[%clk 0:02:46.1]} 2. Nc3 {[%clk 0:03:01.5]}
2... d5 {[%clk 0:02:43.9]} 3. d4 {[%clk 0:03:00]} 3... Bb4 {[%clk 0:02:43.8]} 4.
a3 {[%clk 0:03:00.8]} 4... Bxc3+ {[%clk 0:02:43]} 5. bxc3 {[%clk 0:03:02.7]}
5... Ne7 {[%clk 0:02:41.5]} 6. Bd3 {[%clk 0:02:36.5]} 6... b6 {[%clk 0:02:41.5]}
7. Qg4 {[%clk 0:02:23]} 7... O-O {[%clk 0:02:37.8]} 8. e5 {[%clk 0:02:05.8]}
8... Ba6 {[%clk 0:02:34.8]} 9. Nf3 {[%clk 0:02:06.4]} 9... Bxd3 {[%clk
0:02:34.9]} 10. cxd3 {[%clk 0:02:08.3]} 10... c5 {[%clk 0:02:34.3]} 11. h4
{[%clk 0:01:49.6]} 11... Nbc6 {[%clk 0:02:32.7]} 12. h5 {[%clk 0:01:49.1]} 12...
cxd4 {[%clk 0:01:48.4]} 13. Bh6 {[%clk 0:01:29.8]} 13... g6 {[%clk 0:01:48.3]}
14. hxg6 {[%clk 0:01:23.5]} 14... Nxg6 {[%clk 0:01:43.9]} 15. Bg5 {[%clk
0:01:16.1]} 15... f6 {[%clk 0:01:40.8]} 16. Qxe6+ {[%clk 0:01:15.1]} 16... Rf7
{[%clk 0:01:39.8]} 17. Bxf6 {[%clk 0:01:14.3]} 17... Qe8 {[%clk 0:01:39.1]} 18.
Qxd5 {[%clk 0:00:54.5]} 18... Nce7 {[%clk 0:01:34.2]} 19. Bxe7 {[%clk
0:00:50.2]} 19... Nxe7 {[%clk 0:01:32.9]} 20. Qxd4 {[%clk 0:00:51.2]} 20... Rd8
{[%clk 0:01:29.4]} 21. Qe4 {[%clk 0:00:51.7]} 21... Ng6 {[%clk 0:01:24.5]} 22.
d4 {[%clk 0:00:49.1]} 22... Qb5 {[%clk 0:01:18.4]} 23. Rc1 {[%clk 0:00:24.5]}
23... Nf4 {[%clk 0:01:04.7]} 24. Ng5 {[%clk 0:00:14.8]} 24... Nd3+ {[%clk
0:00:58.9]} 25. Kd2 {[%clk 0:00:16.2]} 25... Rxf2+ {[%clk 0:00:59.3]} 26. Ke3
{[%clk 0:00:15.1]} 26... Re2+ {[%clk 0:01:00.3]} 27. Kxe2 {[%clk 0:00:14.4]}
27... Nc5+ {[%clk 0:01:01]} 28. c4 {[%clk 0:00:14.8]} 28... Qb2+ {[%clk
0:00:59.3]} 29. Qc2 {[%clk 0:00:15.3]} 1-0

[Event "*** Titled Tuesday Blitz"]
[Site "Chess.com"]
[Date "2018.05.01"]
[Round "4"]
[White "EmreDedebas"]
[Black "MatthewG-p4p"]
[Result "0-1"]
[WhiteElo "2392"]
[BlackElo "2611"]
[TimeControl "180+2"]
[EndTime "13:51:11 PDT"]
[Termination "MatthewG-p4p won by resignation"]

1. d4 {[%clk 0:02:57.9]} 1... Nf6 {[%clk 0:02:49.2]} 2. Nf3 {[%clk 0:02:55.9]}
2... c5 {[%clk 0:02:49.3]} 3. d5 {[%clk 0:02:54.9]} 3... e6 {[%clk 0:02:42.4]}
4. Nc3 {[%clk 0:02:52.6]} 4... b5 {[%clk 0:02:42.9]} 5. dxe6 {[%clk 0:02:48.8]}
5... fxe6 {[%clk 0:02:42.4]} 6. e4 {[%clk 0:02:49]} 6... b4 {[%clk 0:02:43]} 7.
e5 {[%clk 0:02:49.3]} 7... bxc3 {[%clk 0:02:42.6]} 8. exf6 {[%clk 0:02:50.2]}
8... Qxf6 {[%clk 0:02:42.4]} 9. Bg5 {[%clk 0:02:51]} 9... Qf7 {[%clk 0:02:28.8]}
10. bxc3 {[%clk 0:02:47.2]} 10... Bb7 {[%clk 0:02:27.6]} 11. Be2 {[%clk
0:02:27.8]} 11... Nc6 {[%clk 0:02:25]} 12. Rb1 {[%clk 0:02:22.8]} 12... Rb8
{[%clk 0:02:19.6]} 13. Bb5 {[%clk 0:01:51.4]} 13... Rc8 {[%clk 0:02:01.9]} 14.
Be2 {[%clk 0:01:30.6]} 14... Ba8 {[%clk 0:01:56.4]} 15. Ba6 {[%clk 0:01:25.4]}
15... Rb8 {[%clk 0:01:55.4]} 16. Ne5 {[%clk 0:00:57.5]} 16... Rxb1 {[%clk
0:01:34.8]} 17. Qxb1 {[%clk 0:00:59.4]} 17... Qf5 {[%clk 0:01:35.7]} 18. Nxc6
{[%clk 0:00:32.3]} 18... Bxc6 {[%clk 0:01:36.5]} 19. Qb8+ {[%clk 0:00:26.2]}
19... Kf7 {[%clk 0:01:37.5]} 20. Qg3 {[%clk 0:00:27.2]} 20... Bd6 {[%clk
0:01:34.6]} 21. Qxd6 {[%clk 0:00:24.5]} 21... Qxg5 {[%clk 0:01:35.4]} 22. Rg1
{[%clk 0:00:08.9]} 22... Qc1+ {[%clk 0:01:24]} 23. Qd1 {[%clk 0:00:08.9]} 23...
Qa3 {[%clk 0:01:25]} 24. Bd3 {[%clk 0:00:03.8]} 24... Qxc3+ {[%clk 0:01:25.9]}
25. Ke2 {[%clk 0:00:05]} 25... Rb8 {[%clk 0:01:25.6]} 26. Qc1 {[%clk 0:00:04.7]}
26... Qe5+ {[%clk 0:01:24.7]} 27. Kf1 {[%clk 0:00:04.7]} 27... Rb4 {[%clk
0:01:19.6]} 28. h3 {[%clk 0:00:02]} 28... c4 {[%clk 0:01:11.7]} 29. Be2 {[%clk
0:00:03]} 29... c3 {[%clk 0:01:11.4]} 30. Bd3 {[%clk 0:00:02.4]} 30... Bb5
{[%clk 0:01:11.7]} 31. Bxb5 {[%clk 0:00:02]} 31... Qxb5+ {[%clk 0:01:12.7]} 32.
Ke1 {[%clk 0:00:03.6]} 32... Rb1 {[%clk 0:01:14.2]} 0-1

[Event "*** Titled Tuesday Blitz"]
[Site "Chess.com"]
[Date "2018.05.01"]
[Round "4"]
[White "MartinMatthiesen"]
[Black "Caisachess"]
[Result "1-0"]
[WhiteElo "2364"]
[BlackElo "2165"]
[TimeControl "180+2"]
[EndTime "13:51:13 PDT"]
[Termination "MartinMatthiesen won by resignation"]

1. d4 {[%clk 0:02:59]} 1... Nf6 {[%clk 0:02:56.6]} 2. c4 {[%clk 0:02:59.2]} 2...
e6 {[%clk 0:02:57.1]} 3. Nc3 {[%clk 0:02:59]} 3... Bb4 {[%clk 0:02:55.4]} 4. Qc2
{[%clk 0:02:59.6]} 4... O-O {[%clk 0:02:55.4]} 5. Nf3 {[%clk 0:02:59.5]} 5... c5
{[%clk 0:02:55.2]} 6. dxc5 {[%clk 0:02:59.5]} 6... Na6 {[%clk 0:02:56.3]} 7. g3
{[%clk 0:03:00.1]} 7... Nxc5 {[%clk 0:02:53.9]} 8. Bg2 {[%clk 0:03:00.5]} 8...
b6 {[%clk 0:02:47.3]} 9. O-O {[%clk 0:03:00.2]} 9... Bb7 {[%clk 0:02:47]} 10.
Nb5 {[%clk 0:03:00.4]} 10... Nce4 {[%clk 0:02:42.5]} 11. Ng5 {[%clk 0:02:20]}
11... d5 {[%clk 0:02:30]} 12. cxd5 {[%clk 0:02:19.8]} 12... exd5 {[%clk
0:02:30.1]} 13. a3 {[%clk 0:02:16.2]} 13... Rc8 {[%clk 0:02:28.3]} 14. Qa4
{[%clk 0:02:13]} 14... Bc5 {[%clk 0:02:24]} 15. b4 {[%clk 0:01:32.6]} 15... Be7
{[%clk 0:02:13.2]} 16. Qxa7 {[%clk 0:01:28.7]} 16... Bc6 {[%clk 0:02:12.3]} 17.
Nd4 {[%clk 0:01:25.2]} 17... Ra8 {[%clk 0:01:48.4]} 18. Nxc6 {[%clk 0:01:23.2]}
18... Rxa7 {[%clk 0:01:49.4]} 19. Nxd8 {[%clk 0:01:24.2]} 19... Rxd8 {[%clk
0:01:47]} 20. Nxe4 {[%clk 0:01:24.6]} 20... dxe4 {[%clk 0:01:43.7]} 21. Be3
{[%clk 0:01:23.3]} 21... Nd5 {[%clk 0:01:41.1]} 22. Bd4 {[%clk 0:01:17.4]} 22...
f5 {[%clk 0:01:36.7]} 23. g4 {[%clk 0:01:07.7]} 23... Rad7 {[%clk 0:00:51.9]}
24. gxf5 {[%clk 0:01:05]} 24... Nf4 {[%clk 0:00:53]} 25. Bxb6 {[%clk 0:01:04.6]}
25... Nxe2+ {[%clk 0:00:54.2]} 26. Kh1 {[%clk 0:01:05]} 26... Rb8 {[%clk
0:00:54.1]} 27. Be3 {[%clk 0:01:03.5]} 27... Nc3 {[%clk 0:00:53.6]} 28. Rfc1
{[%clk 0:00:51.6]} 28... Bf6 {[%clk 0:00:54]} 29. Rc2 {[%clk 0:00:49.7]} 29...
Rb5 {[%clk 0:00:53.4]} 30. Rac1 {[%clk 0:00:49]} 30... Rxf5 {[%clk 0:00:53]} 31.
Bh3 {[%clk 0:00:45.9]} 31... Rfd5 {[%clk 0:00:45.2]} 32. Bxd7 {[%clk 0:00:45.5]}
32... Rxd7 {[%clk 0:00:46.6]} 33. Rxc3 {[%clk 0:00:46.2]} 1-0

[Event "*** Titled Tuesday Blitz"]
[Site "Chess.com"]
[Date "2018.05.01"]
[Round "4"]
[White "HarutyunianTigranK"]
[Black "Korchmar_Vasiliy"]
[Result "1/2-1/2"]
[WhiteElo "2729"]
[BlackElo "2722"]
[TimeControl "180+2"]
[EndTime "13:51:20 PDT"]
[Termination "Game drawn by repetition"]

1. c4 {[%clk 0:03:00.9]} 1... e5 {[%clk 0:02:58.7]} 2. Nc3 {[%clk 0:03:02.1]}
2... Nf6 {[%clk 0:02:59.3]} 3. Nf3 {[%clk 0:03:03.6]} 3... Nc6 {[%clk
0:02:59.7]} 4. e3 {[%clk 0:03:04.9]} 4... Bb4 {[%clk 0:02:59]} 5. Qc2 {[%clk
0:03:06]} 5... Bxc3 {[%clk 0:02:54.9]} 6. Qxc3 {[%clk 0:03:06.6]} 6... Qe7
{[%clk 0:02:54.4]} 7. d4 {[%clk 0:03:07.5]} 7... exd4 {[%clk 0:02:42.9]} 8. Nxd4
{[%clk 0:03:06.7]} 8... Nxd4 {[%clk 0:02:44.5]} 9. Qxd4 {[%clk 0:03:07.3]} 9...
O-O {[%clk 0:02:46.4]} 10. Be2 {[%clk 0:03:06.8]} 10... Rd8 {[%clk 0:02:45.9]}
11. O-O {[%clk 0:03:04.9]} 11... d5 {[%clk 0:02:46.8]} 12. c5 {[%clk 0:03:02.9]}
12... b6 {[%clk 0:02:32.5]} 13. b4 {[%clk 0:03:01.7]} 13... a5 {[%clk
0:02:29.3]} 14. cxb6 {[%clk 0:03:02.2]} 14... cxb6 {[%clk 0:02:17.5]} 15. bxa5
{[%clk 0:03:02.5]} 15... bxa5 {[%clk 0:02:17.2]} 16. a4 {[%clk 0:02:56.8]} 16...
Ba6 {[%clk 0:02:16]} 17. Bxa6 {[%clk 0:02:52.8]} 17... Rxa6 {[%clk 0:02:17.9]}
18. Ba3 {[%clk 0:02:48.9]} 18... Qe6 {[%clk 0:02:11.3]} 19. Rfc1 {[%clk
0:02:43.9]} 19... h6 {[%clk 0:02:08.7]} 20. Rab1 {[%clk 0:02:38.2]} 20... Rc6
{[%clk 0:02:03.8]} 21. h3 {[%clk 0:02:36.7]} 21... Rdc8 {[%clk 0:02:02.1]} 22.
Rxc6 {[%clk 0:02:34.7]} 22... Rxc6 {[%clk 0:02:03.7]} 23. Rb5 {[%clk 0:02:19.5]}
23... Qf5 {[%clk 0:02:02.6]} 24. e4 {[%clk 0:01:27.3]} 24... Nxe4 {[%clk
0:01:50.7]} 25. Rxd5 {[%clk 0:01:25.7]} 25... Qf4 {[%clk 0:01:48.6]} 26. f3
{[%clk 0:01:11]} 26... Rc4 {[%clk 0:00:31.2]} 27. Qd3 {[%clk 0:00:56.2]} 27...
Rc1+ {[%clk 0:00:20.9]} 28. Bxc1 {[%clk 0:00:55.4]} 28... Qxc1+ {[%clk
0:00:22.8]} 29. Qd1 {[%clk 0:00:56.6]} 29... Qe3+ {[%clk 0:00:23.7]} 30. Kh2
{[%clk 0:00:52.6]} 30... Qf4+ {[%clk 0:00:25.1]} 31. Kg1 {[%clk 0:00:52.5]}
31... Qe3+ {[%clk 0:00:26.3]} 32. Kh2 {[%clk 0:00:51.4]} 32... Qf4+ {[%clk
0:00:27.5]} 33. Kg1 {[%clk 0:00:52.6]} 33... Qe3+ {[%clk 0:00:28.8]} 34. Kh2
{[%clk 0:00:53.5]} 34... Qf4+ {[%clk 0:00:30.1]} 35. Kg1 {[%clk 0:00:54.5]}
35... Qe3+ {[%clk 0:00:31.4]} 36. Kh2 {[%clk 0:00:55.7]} 36... Qf4+ {[%clk
0:00:32.8]} 37. Kg1 {[%clk 0:00:56.9]} 37... Qe3+ {[%clk 0:00:34.1]} 1/2-1/2

[Event "*** Titled Tuesday Blitz"]
[Site "Chess.com"]
[Date "2018.05.01"]
[Round "4"]
[White "rubhani"]
[Black "Keaton87"]
[Result "0-1"]
[WhiteElo "2426"]
[BlackElo "2460"]
[TimeControl "180+2"]
[EndTime "13:51:21 PDT"]
[Termination "Keaton87 won by resignation"]

1. e4 {[%clk 0:03:01.9]} 1... c5 {[%clk 0:03:00.6]} 2. Nf3 {[%clk 0:03:02.7]}
2... d6 {[%clk 0:03:02]} 3. d4 {[%clk 0:03:03.4]} 3... Nf6 {[%clk 0:03:03.5]} 4.
Nc3 {[%clk 0:03:03.8]} 4... cxd4 {[%clk 0:03:05.1]} 5. Nxd4 {[%clk 0:03:05.5]}
5... g6 {[%clk 0:03:06.8]} 6. Be3 {[%clk 0:03:05.5]} 6... Bg7 {[%clk 0:03:08.4]}
7. f3 {[%clk 0:03:06.9]} 7... O-O {[%clk 0:03:09.8]} 8. Qd2 {[%clk 0:03:08.3]}
8... Nc6 {[%clk 0:03:11.4]} 9. O-O-O {[%clk 0:03:09.6]} 9... d5 {[%clk
0:03:12.8]} 10. Qe1 {[%clk 0:03:10.7]} 10... e5 {[%clk 0:03:12]} 11. Nxc6 {[%clk
0:03:11]} 11... bxc6 {[%clk 0:03:13.1]} 12. exd5 {[%clk 0:03:11.9]} 12... Nxd5
{[%clk 0:03:14.7]} 13. Bc4 {[%clk 0:03:11.5]} 13... Be6 {[%clk 0:03:14.4]} 14.
Bc5 {[%clk 0:03:06.1]} 14... Re8 {[%clk 0:03:12.6]} 15. Kb1 {[%clk 0:03:05.7]}
15... Rb8 {[%clk 0:03:07.3]} 16. Bb3 {[%clk 0:03:04.2]} 16... Qc7 {[%clk
0:03:01.1]} 17. Ne4 {[%clk 0:02:57.3]} 17... Red8 {[%clk 0:02:55.6]} 18. h4
{[%clk 0:02:57.9]} 18... h6 {[%clk 0:02:47.1]} 19. c4 {[%clk 0:02:34.7]} 19...
Nf4 {[%clk 0:02:45.6]} 20. Bd6 {[%clk 0:02:35.3]} 20... Rxd6 {[%clk 0:02:32.4]}
21. Nxd6 {[%clk 0:02:35.9]} 21... Nxg2 {[%clk 0:02:11.9]} 22. Qd2 {[%clk
0:02:18.8]} 22... Nf4 {[%clk 0:02:08.6]} 23. Rhe1 {[%clk 0:02:11.4]} 23... c5
{[%clk 0:02:04.1]} 24. Ne4 {[%clk 0:02:11.3]} 24... f5 {[%clk 0:01:56.6]} 25.
Nc3 {[%clk 0:02:10.8]} 25... Bf6 {[%clk 0:01:49.6]} 26. h5 {[%clk 0:02:08]}
26... g5 {[%clk 0:01:41]} 27. Nb5 {[%clk 0:01:45.2]} 27... Qc6 {[%clk
0:01:28.5]} 28. Qd6 {[%clk 0:01:38.9]} 28... Qxd6 {[%clk 0:01:22.4]} 29. Rxd6
{[%clk 0:01:39.5]} 29... Kf7 {[%clk 0:01:10.6]} 30. Ra6 {[%clk 0:01:37.1]} 30...
Nxh5 {[%clk 0:01:07.6]} 31. Rh1 {[%clk 0:01:20.8]} 31... Nf4 {[%clk 0:01:00.9]}
32. Rxh6 {[%clk 0:01:21.6]} 32... Kg7 {[%clk 0:00:55]} 33. Rh1 {[%clk
0:01:21.3]} 33... g4 {[%clk 0:00:47.5]} 34. fxg4 {[%clk 0:01:21.6]} 34... fxg4
{[%clk 0:00:48.6]} 35. Nc7 {[%clk 0:01:20.6]} 35... Bf5+ {[%clk 0:00:35.8]} 36.
Bc2 {[%clk 0:01:20.6]} 36... Nd3 {[%clk 0:00:36.7]} 37. Nb5 {[%clk 0:01:05.4]}
37... e4 {[%clk 0:00:34.3]} 38. Nd6 {[%clk 0:01:03.7]} 38... Rxb2+ {[%clk
0:00:24.7]} 0-1

[Event "*** Titled Tuesday Blitz"]
[Site "Chess.com"]
[Date "2018.05.01"]
[Round "4"]
[White "MartinZumsande"]
[Black "chessking2151"]
[Result "1-0"]
[WhiteElo "2515"]
[BlackElo "2417"]
[TimeControl "180+2"]
[EndTime "13:51:21 PDT"]
[Termination "MartinZumsande won by resignation"]

1. e4 {[%clk 0:03:01.9]} 1... c5 {[%clk 0:02:58.5]} 2. Nf3 {[%clk 0:03:02.4]}
2... e6 {[%clk 0:02:59.4]} 3. c3 {[%clk 0:03:03.4]} 3... Nf6 {[%clk 0:02:58.1]}
4. e5 {[%clk 0:03:04.3]} 4... Nd5 {[%clk 0:02:59.1]} 5. Bc4 {[%clk 0:03:04.3]}
5... Nc6 {[%clk 0:02:58.6]} 6. d4 {[%clk 0:03:01.2]} 6... cxd4 {[%clk
0:02:57.9]} 7. cxd4 {[%clk 0:03:02.3]} 7... d6 {[%clk 0:02:59.2]} 8. O-O {[%clk
0:03:03.1]} 8... Be7 {[%clk 0:02:53.9]} 9. Re1 {[%clk 0:02:58.6]} 9... O-O
{[%clk 0:02:52.6]} 10. exd6 {[%clk 0:02:59.7]} 10... Bxd6 {[%clk 0:02:52.9]} 11.
Nc3 {[%clk 0:03:00.2]} 11... h6 {[%clk 0:02:20.2]} 12. a3 {[%clk 0:02:37.6]}
12... Nf6 {[%clk 0:02:08.8]} 13. Be3 {[%clk 0:02:30.5]} 13... Na5 {[%clk
0:01:58.6]} 14. Ba2 {[%clk 0:02:28.2]} 14... Bd7 {[%clk 0:01:55.8]} 15. Ne5
{[%clk 0:02:23.3]} 15... Nc6 {[%clk 0:01:46.5]} 16. Bf4 {[%clk 0:02:16.6]} 16...
Bb8 {[%clk 0:01:36.9]} 17. Qd3 {[%clk 0:02:02.4]} 17... Nh5 {[%clk 0:01:33]} 18.
Bb1 {[%clk 0:01:53.2]} 18... f5 {[%clk 0:01:27.4]} 19. Nxc6 {[%clk 0:01:32.3]}
19... Bxc6 {[%clk 0:01:09]} 20. Bxb8 {[%clk 0:01:28]} 20... Rxb8 {[%clk
0:01:10.9]} 21. Ba2 {[%clk 0:01:26]} 21... Qg5 {[%clk 0:01:07]} 22. Bxe6+ {[%clk
0:01:24]} 22... Kh8 {[%clk 0:01:05.5]} 23. d5 {[%clk 0:01:25.4]} 23... Rbd8
{[%clk 0:01:03.4]} 24. Qe3 {[%clk 0:01:11.6]} 24... f4 {[%clk 0:01:00.5]} 25.
Qe5 {[%clk 0:01:11.8]} 25... Qg6 {[%clk 0:00:40.7]} 26. dxc6 {[%clk 0:01:01.2]}
26... f3 {[%clk 0:00:41.4]} 27. g3 {[%clk 0:01:01.5]} 27... Nf4 {[%clk
0:00:40.2]} 28. c7 {[%clk 0:00:52.7]} 28... Rde8 {[%clk 0:00:13.1]} 29. c8=Q
{[%clk 0:00:48.2]} 29... Nxe6 {[%clk 0:00:10.6]} 30. Qcxe6 {[%clk 0:00:43]}
30... Rxe6 {[%clk 0:00:10.9]} 31. Qxe6 {[%clk 0:00:44]} 1-0

[Event "*** Titled Tuesday Blitz"]
[Site "Chess.com"]
[Date "2018.05.01"]
[Round "4"]
[White "joejan"]
[Black "PawnEatingZombie"]
[Result "1-0"]
[WhiteElo "2155"]
[BlackElo "1988"]
[TimeControl "180+2"]
[EndTime "13:51:21 PDT"]
[Termination "joejan won by resignation"]

1. e4 {[%clk 0:03:01.9]} 1... c5 {[%clk 0:03:00.2]} 2. Nc3 {[%clk 0:03:01.7]}
2... e6 {[%clk 0:03:01.2]} 3. f4 {[%clk 0:03:02.6]} 3... d5 {[%clk 0:03:01.3]}
4. Bb5+ {[%clk 0:03:03.2]} 4... Bd7 {[%clk 0:03:01.7]} 5. Bxd7+ {[%clk
0:03:04.2]} 5... Qxd7 {[%clk 0:03:02.3]} 6. d3 {[%clk 0:03:05.6]} 6... Nc6
{[%clk 0:03:02.9]} 7. Nf3 {[%clk 0:03:05.9]} 7... dxe4 {[%clk 0:02:55.8]} 8.
dxe4 {[%clk 0:03:05.3]} 8... Qxd1+ {[%clk 0:02:55]} 9. Nxd1 {[%clk 0:03:06.8]}
9... Nf6 {[%clk 0:02:53.5]} 10. Nf2 {[%clk 0:03:07.8]} 10... Nb4 {[%clk
0:02:44.2]} 11. Kd1 {[%clk 0:03:07]} 11... Rd8+ {[%clk 0:02:36]} 12. Bd2 {[%clk
0:03:08.2]} 12... Be7 {[%clk 0:02:13]} 13. a3 {[%clk 0:02:59.5]} 13... Nc6
{[%clk 0:02:13.8]} 14. Ke2 {[%clk 0:02:58.5]} 14... O-O {[%clk 0:02:09.7]} 15.
Be3 {[%clk 0:02:55.8]} 15... b6 {[%clk 0:02:10]} 16. g4 {[%clk 0:02:52.2]} 16...
h5 {[%clk 0:02:04.7]} 17. h3 {[%clk 0:02:47.7]} 17... hxg4 {[%clk 0:01:43.2]}
18. hxg4 {[%clk 0:02:47.7]} 18... g6 {[%clk 0:01:44.3]} 19. c3 {[%clk
0:02:33.8]} 19... Rd7 {[%clk 0:01:43.2]} 20. b4 {[%clk 0:02:33.4]} 20... Rfd8
{[%clk 0:01:42.3]} 21. Rhd1 {[%clk 0:02:29.5]} 21... Rxd1 {[%clk 0:01:39.9]} 22.
Rxd1 {[%clk 0:02:30.9]} 22... Rxd1 {[%clk 0:01:40.5]} 23. Kxd1 {[%clk
0:02:31.5]} 23... Kf8 {[%clk 0:01:39.1]} 24. Kc2 {[%clk 0:02:31.9]} 24... Ke8
{[%clk 0:01:39.7]} 25. Kd3 {[%clk 0:02:29.4]} 25... Nd7 {[%clk 0:01:30.5]} 26.
Kc4 {[%clk 0:02:28.3]} 26... cxb4 {[%clk 0:01:31.3]} 27. cxb4 {[%clk 0:02:26.1]}
27... Kd8 {[%clk 0:01:29]} 28. Nd3 {[%clk 0:02:14.7]} 28... Ke8 {[%clk
0:01:15.7]} 29. Kb5 {[%clk 0:02:10.1]} 29... Ncb8 {[%clk 0:01:13.8]} 30. a4
{[%clk 0:02:06.4]} 30... a6+ {[%clk 0:01:05.2]} 31. Kc4 {[%clk 0:02:04.9]} 31...
f6 {[%clk 0:01:04.5]} 32. b5 {[%clk 0:01:53.4]} 32... a5 {[%clk 0:01:02.8]} 33.
Nd4 {[%clk 0:01:49.7]} 33... Kf7 {[%clk 0:00:58]} 34. Nc6 {[%clk 0:01:48.5]}
34... Bd6 {[%clk 0:00:50.4]} 35. e5 {[%clk 0:01:41.1]} 35... fxe5 {[%clk
0:00:48.7]} 36. fxe5 {[%clk 0:01:42.1]} 36... Bc7 {[%clk 0:00:48.3]} 37. Bd4
{[%clk 0:01:38.6]} 37... g5 {[%clk 0:00:39.2]} 38. Nf2 {[%clk 0:01:21.5]} 38...
Nxc6 {[%clk 0:00:29.3]} 39. bxc6 {[%clk 0:01:21.5]} 39... Nxe5+ {[%clk
0:00:30.9]} 40. Bxe5 {[%clk 0:01:22.5]} 40... Bxe5 {[%clk 0:00:31.7]} 41. Kb5
{[%clk 0:01:21.9]} 41... Bc7 {[%clk 0:00:33.2]} 42. Ka6 {[%clk 0:01:22.2]} 42...
Ke7 {[%clk 0:00:34.8]} 43. Kb7 {[%clk 0:01:23.3]} 43... Kd6 {[%clk 0:00:36.3]}
44. Ne4+ {[%clk 0:01:23.7]} 1-0

[Event "*** Titled Tuesday Blitz"]
[Site "Chess.com"]
[Date "2018.05.01"]
[Round "4"]
[White "AndrewDGreen"]
[Black "AndrewMcStone"]
[Result "1-0"]
[WhiteElo "2160"]
[BlackElo "2063"]
[TimeControl "180+2"]
[EndTime "13:51:29 PDT"]
[Termination "AndrewDGreen won by checkmate"]

1. d4 {[%clk 0:02:49.4]} 1... Nf6 {[%clk 0:02:59]} 2. Nf3 {[%clk 0:02:50]} 2...
c5 {[%clk 0:02:59.6]} 3. d5 {[%clk 0:02:50.2]} 3... e6 {[%clk 0:03:00.6]} 4. Nc3
{[%clk 0:02:51.2]} 4... exd5 {[%clk 0:03:00.5]} 5. Nxd5 {[%clk 0:02:53.1]} 5...
Nxd5 {[%clk 0:03:02]} 6. Qxd5 {[%clk 0:02:53.7]} 6... Nc6 {[%clk 0:03:03.4]} 7.
e4 {[%clk 0:02:52.5]} 7... Be7 {[%clk 0:02:28.5]} 8. Bb5 {[%clk 0:02:38.3]} 8...
O-O {[%clk 0:02:20.8]} 9. O-O {[%clk 0:02:38.6]} 9... Qb6 {[%clk 0:02:07.5]} 10.
Bc4 {[%clk 0:02:32.3]} 10... d6 {[%clk 0:02:05.8]} 11. Bb3 {[%clk 0:02:26.8]}
11... Be6 {[%clk 0:02:01.4]} 12. Qd3 {[%clk 0:02:27.3]} 12... Ne5 {[%clk
0:01:37.4]} 13. Nxe5 {[%clk 0:02:23.1]} 13... dxe5 {[%clk 0:01:38.4]} 14. Bxe6
{[%clk 0:02:19.9]} 14... Qxe6 {[%clk 0:01:40.3]} 15. Be3 {[%clk 0:02:19.7]}
15... Rfd8 {[%clk 0:01:35.7]} 16. Qc3 {[%clk 0:02:17.1]} 16... b6 {[%clk
0:01:30.6]} 17. a4 {[%clk 0:02:13.5]} 17... Rd7 {[%clk 0:01:22.6]} 18. a5 {[%clk
0:02:13.6]} 18... Rad8 {[%clk 0:01:23.9]} 19. axb6 {[%clk 0:02:12.3]} 19... axb6
{[%clk 0:01:25.8]} 20. h3 {[%clk 0:02:04.2]} 20... h6 {[%clk 0:01:20]} 21. b3
{[%clk 0:01:53.8]} 21... Bg5 {[%clk 0:01:20]} 22. Bxg5 {[%clk 0:01:52.9]} 22...
hxg5 {[%clk 0:01:21.9]} 23. Qe3 {[%clk 0:01:50]} 23... f6 {[%clk 0:01:09.7]} 24.
Ra6 {[%clk 0:01:46.7]} 24... Rd4 {[%clk 0:01:08.1]} 25. c3 {[%clk 0:01:42.2]}
25... Rd3 {[%clk 0:01:04.2]} 26. Qxc5 {[%clk 0:01:40.2]} 26... bxc5 {[%clk
0:01:05.2]} 27. Rxe6 {[%clk 0:01:40.8]} 27... Rxc3 {[%clk 0:01:06]} 28. Rc6
{[%clk 0:01:38.6]} 28... Rb8 {[%clk 0:01:02.6]} 29. Rd1 {[%clk 0:01:36.9]} 29...
Rbxb3 {[%clk 0:00:59.6]} 30. Rd7 {[%clk 0:01:37.6]} 30... Rd3 {[%clk 0:00:21.5]}
31. Re7 {[%clk 0:01:30.1]} 31... Rd4 {[%clk 0:00:15.2]} 32. Rcc7 {[%clk
0:01:27.7]} 32... Rxe4 {[%clk 0:00:15.8]} 33. Rxg7+ {[%clk 0:01:28.7]} 33... Kh8
{[%clk 0:00:16.4]} 34. Rh7+ {[%clk 0:01:28.5]} 34... Kg8 {[%clk 0:00:16.7]} 35.
Rhg7+ {[%clk 0:01:30.4]} 35... Kf8 {[%clk 0:00:16.9]} 36. Rgf7+ {[%clk
0:01:32.3]} 36... Ke8 {[%clk 0:00:17.7]} 37. Rh7 {[%clk 0:01:31.8]} 37... Re1+
{[%clk 0:00:10.9]} 38. Kh2 {[%clk 0:01:30.6]} 38... Kd8 {[%clk 0:00:12]} 39.
Rcg7 {[%clk 0:01:29.1]} 39... Kc8 {[%clk 0:00:02.6]} 40. Rg8# {[%clk 0:01:28.9]}
1-0